Cogmind - Beta 17 @@@ ROGUE MODE // 2026.07.28 @ 00:29:54 Player: TheLostLambda Result: Destroyed by B-99 Colossus with Multirail Performance ------------- Evolutions (9) 4500 Regions Visited (18) 3600 Robots Destroyed (325) 1625 Value Destroyed (14566) 14566 Prototype IDs (61) 1220 Alien Tech Used (3) 600 Bonus (24008) 24008 TOTAL SCORE: 50119 Bonus ------- High Alert Combat Kills 2404 Follower Combat Kills 1305 Prayed to X0-1V1 5000 Major X0-1V1 Interference 10650 Subatomizer Sterilization 3000 Met Data Miner 300 Scanned by Researcher 500 Pursued by Intercept 1000 Friendly Fire -151 Cogmind --------- Core Integrity 0/1330 Matter 876/900 Energy 91/100 System Corruption 23% Temperature Cool (0) Movement Core (50) Location -1/Access Parts ------- > --- POWER (3) -------- (None) > --- PROPULSION (5) --- Flying ITA-Armored Exoskeleton > --- UTILITY (12) ----- Advanced Signal Interpreter Spacefold Activator > --- WEAPON (5) ------- (None) > --- INVENTORY (5) ---- Energy Well (350) Improved Weapon Cycler Advanced Point Defense System Makeshift Hacking Suite Heavy Scimitar of Distortion Peak State ------------ > --- POWER ------------ Quantum-Antimatter Reactor > --- PROPULSION ------- Flying ITA-Armored Exoskeleton > --- UTILITY ---------- Armored Scrap Engine Advanced Heat Sink Huge Storage Unit Long-range Sensor Array Advanced Signal Interpreter Long-range Terrain Scanner Advanced Target Analyzer X0-1V1's Piety Tracker Microwarp Drive > --- WEAPON ----------- Hyp. Kinetic Hardcell Construct/C Hpw. Ballistic Hardcell Construct/C Prc. Thermal Nova Construct/C Heavy Scimitar of Distortion > --- INVENTORY -------- Quantum Reactor Energy Well Matter Compressor Improved Weapon Cycler Advanced Weapon Cycler Advanced Force Booster Advanced Force Booster Improved Transmission Jammer Phase Shifter Experimental Phase Shifter Makeshift Cloaking Device Experimental Weapon Shielding Advanced EM Disruption Field Advanced Point Defense System Makeshift Hacking Suite Ghost Barrier Dynamic Insulation System Improved System Guard Advanced Field Recycling Unit Spacefold Activator Containment Facilitator Chaos Jack Stasis Projector Armageddon Trap [Rating: 224] Favorites ----------- Power Constructs Engine Heavy Ion Engine Power Core Light Nuclear Core Reactor Constructs Propulsion Constructs Treads Armored Treads Leg Aluminum Leg Hover Unit Aerolev Unit Flight Unit Constructs Utility X0-1V1's Piety Tracker Device X0-1V1's Piety Tracker Storage High-capacity Storage Unit Processor Advanced Signal Interpreter Hackware Advanced System Shield Protection Improved Light Armor Plating Artifact Spacefold Activator Weapon Constructs Energy Gun Advanced Beam Rifle Energy Cannon Constructs Ballistic Gun Gauss Rifle Ballistic Cannon Constructs Launcher Tesla Bomb Launcher Impact Weapon Heavy Mace Slashing Weapon Heavy Scimitar of Distortion Piercing Weapon Lance Special Melee Weapon Chaos Jack Build | -11 -10 -9 -8 -8 -8 -6 -6 -6 -6 -5 -5 -5 -4 -3 -2 -2 -2 -1 ------- Run | Yrd Mat Mat Mat Sto Rec Fac Low Low Dat Pro Fac Ext Fac Res Res Tes Sec Acc Slots Evolved 18 | . . 2 2 . . 4 . . . . 2 . 2 2 2 . . 2 Power 1 | . . . . . . . . . . . . . . . 1 . . . Propulsion 3 | . . . 1 . . 1 . . . . . . . . . . . 1 Utility 11 | . . 2 . . . 2 . . . . 2 . 2 1 1 . . 1 Weapon 3 | . . . 1 . . 1 . . . . . . . 1 . . . . Parts Attached 166 | 8 9 3 28 19 2 9 1 7 . 3 15 1 14 9 4 19 7 8 Power 6 | 1 1 . 2 . . . . . . . 1 . . 1 . . . . Engine 2 | 1 . . 1 . . . . . . . . . . . . . . . Core 3 | . 1 . 1 . . . . . . . 1 . . . . . . . Reactor 1 | . . . . . . . . . . . . . . 1 . . . . Propulsion 22 | 2 1 2 10 6 1 . . . . . . . . . . . . . Treads 6 | . . 2 1 3 . . . . . . . . . . . . . . Leg 13 | 2 1 . 8 1 1 . . . . . . . . . . . . . Wheel . | . . . . . . . . . . . . . . . . . . . Hover 2 | . . . 1 1 . . . . . . . . . . . . . . Flight 1 | . . . . 1 . . . . . . . . . . . . . . Utility 103 | 2 5 . 7 2 1 8 1 6 . 3 14 1 14 7 4 15 7 6 Device 71 | 1 2 . 2 1 1 5 1 3 . 3 12 1 12 4 1 11 5 6 Storage 7 | 1 1 . 1 . . 1 . 1 . . . . . 2 . . . . Processor 11 | . . . 1 . . 2 . 1 . . 2 . 2 1 . 2 . . Hackware 3 | . . . . . . . . . . . . . . . 3 . . . Protection 9 | . 2 . 3 1 . . . 1 . . . . . . . 2 . . Artifact 2 | . . . . . . . . . . . . . . . . . 2 . Weapon 35 | 3 2 1 9 11 . 1 . 1 . . . . . 1 . 4 . 2 Energy Gun 11 | 3 . . 1 6 . 1 . . . . . . . . . . . . Energy Cannon 5 | . 1 . 1 3 . . . . . . . . . . . . . . Ballistic Gun 2 | . . . 1 1 . . . . . . . . . . . . . . Ballistic Cannon . | . . . . . . . . . . . . . . . . . . . Launcher 5 | . . . 1 1 . . . 1 . . . . . 1 . . . 1 Special Weapon . | . . . . . . . . . . . . . . . . . . . Impact Weapon 6 | . 1 1 3 . . . . . . . . . . . . 1 . . Slashing Weapon 4 | . . . 2 . . . . . . . . . . . . 2 . . Piercing Weapon 1 | . . . . . . . . . . . . . . . . 1 . . Special Melee Weapon 1 | . . . . . . . . . . . . . . . . . . 1 Unidentified Prototypes 35 | . 1 . 3 7 1 1 . . . . 3 . 1 1 1 11 4 1 Parts Lost 87 | . 2 . 3 7 . 1 . 3 . . 11 1 12 5 1 8 8 25 Power 6 | . 1 . . . . . . . . . 2 1 1 . . 1 . . Propulsion 9 | . . . 1 3 . . . . . . . . . . . 2 . 3 Utility 39 | . . . 1 2 . 1 . 2 . . 4 . 5 2 . 2 5 15 Weapon 33 | . 1 . 1 2 . . . 1 . . 5 . 6 3 1 3 3 7 Highest Loss Streak 12 | . 2 . 1 2 . 1 . 1 . . 4 1 3 2 1 6 3 12 To Critical Strikes 3 | . . . . . . . . . . . 1 . 1 . . . . 1 Average Backups 16 | 1 8 9 9 9 8 9 13 18 16 19 19 18 18 18 21 23 21 19 Power . | . . . . 1 . . . . 1 . . . . . . . . . Propulsion . | . . 1 . 1 . . . . . . . . . . 2 . . . Utility 12 | . 5 5 5 2 4 7 10 12 11 14 17 16 16 15 17 20 19 15 Weapon 1 | . 2 3 2 4 2 1 2 3 3 3 2 2 2 . 1 . . . Tool/Special . | . . . . . . . . . . . . . . . . . . . Unused Backups 61 | . 3 1 9 4 3 5 . . 1 5 11 . 2 4 . 4 . 9 Power 7 | . 1 . . 1 1 . . . . 1 . . . . . 2 . 1 Propulsion 5 | . . . 1 . 2 . . . . . . . . . . 2 . . Utility 37 | . 1 . 4 2 . 5 . . . 4 8 . 2 4 . . . 7 Weapon 10 | . 1 1 4 1 . . . . 1 . 2 . . . . . . . Tool/Special 2 | . . . . . . . . . . . 1 . . . . . . 1 Average Slot Usage (%) 73 | . 99 88 96 96 76 64 66 65 73 68 64 63 65 68 62 65 68 59 Engine 1 | . 6 . 4 8 8 2 . . . . . . . . . . . . Core 2 | . 7 11 4 . . 3 6 3 2 6 4 2 2 . . . . . Reactor 1 | . . . . . . . . 2 3 . . 2 2 4 4 4 4 3 Treads 3 | . . 1 8 12 12 3 6 5 . . . . 1 . . . 3 . Leg 5 | . 28 20 17 10 4 2 . . . 3 1 4 3 3 . 1 . . Device 21 | . 12 32 23 21 18 19 21 22 13 20 18 23 25 27 17 18 26 24 Storage 6 | . 14 11 9 9 9 6 6 6 6 6 5 5 5 4 4 4 4 4 Processor 5 | . . . . . . 6 4 . 6 . 9 5 9 9 8 10 8 7 Protection 1 | . 1 . 2 5 2 . . 1 6 . . . . . . 1 . 2 Energy Gun 3 | . 10 . 2 11 . 1 6 6 6 3 1 . . 1 4 1 3 1 Energy Cannon 4 | . 8 . 4 3 9 . 6 6 17 17 5 3 2 3 4 3 1 . Ballistic Gun 1 | . . . . 1 1 . . . . . 1 11 6 1 . 1 1 . Ballistic Cannon 4 | . . . . . 1 11 6 6 2 4 7 1 4 7 2 1 5 6 Impact Weapon 1 | . 8 11 9 1 . . . . . . . . . . . 1 2 . Slashing Weapon 2 | . . . 7 9 8 3 . . . . . . . . . 3 4 2 Peak Build Rating 224 | 7 22 26 40 48 62 95 95 104 105 109 130 133 142 167 162 198 214 224 Average Rating 108 | 5 9 23 35 41 52 77 93 96 103 107 122 122 134 144 158 173 195 192 On Entrance 94 | . 7 22 26 38 44 58 93 95 103 103 109 117 131 118 152 162 198 214 Avg Prop Armor Cover (%) 15 | . . . 18 5 11 . . . . . . . . . . . . 23 Naked Turns . | . . . . . . . . . . . . . . . . . . . Heaviest Build 225 | 13 23 21 32 43 46 92 93 97 84 89 103 112 113 170 157 180 219 225 Greatest Support 220 | 20 20 46 69 60 60 135 135 173 173 173 135 153 199 220 220 220 68 68 Greatest Overweight (x) 48 | 1 1 1 2 3 1 1 . . . . . . . . . 2 3 48 Average Overweight (x) . | . . . . . . . . . . . . . . . . . 2 3 Largest Inventory Capacity 25 | 8 10 10 10 10 10 20 20 20 20 20 20 20 20 25 25 25 25 25 Average Capacity 17 | 7 9 10 10 10 10 12 20 20 20 20 20 20 20 23 25 25 25 23 Most Carried 25 | 4 10 10 10 10 10 11 17 20 17 20 20 19 20 24 24 25 25 25 Average Carried 16 | 1 9 9 9 9 8 9 13 18 16 19 19 18 19 19 22 24 22 21 Final Capacity 25 | 8 10 10 10 10 10 20 20 20 20 20 20 20 20 25 25 25 25 5 Final Carried 25 | 4 10 10 10 10 10 11 17 17 16 20 18 19 20 24 23 25 24 5 Scrap Engine Consumption 313 | . . . . . 29 30 7 3 1 5 44 15 53 41 3 35 29 18 Constructs Created 27 | . . . . . 3 2 . 1 . . 5 1 4 3 . 2 5 1 Constructs Modified 155 | . . . . . 7 12 . 8 3 9 23 10 14 18 2 10 23 16 Class Distribution -------------------- 61% | Construct 23% | Mutant 5% | Scavenger-Mutant 4% | Hacker-Construct Dominant Class ---------------- Mutant | -10/Materials Mutant | -9/Materials Mutant | -8/Materials Mutant | -8/Storage Construct | -8/Recycling Construct | -6/Factory Construct | -6/Lower Caves Construct | -6/Lower Caves Construct | -6/Data Miner Construct | -5/Proximity Caves Construct | -5/Factory Commander-Construct | -5/Extension Construct | -4/Factory Construct | -3/Research Hacker-Construct | -2/Research Hacker-Construct | -2/Testing Construct | -2/Section 7 Construct | -1/Access Resources | -11 -10 -9 -8 -8 -8 -6 -6 -6 -6 -5 -5 -5 -4 -3 -2 -2 -2 -1 ----------- Run | Yrd Mat Mat Mat Sto Rec Fac Low Low Dat Pro Fac Ext Fac Res Res Tes Sec Acc Matter Collected 10408 | 237 181 60 1042 498 50 457 120 658 . 465 1836 695 592 857 81 929 1207 443 Remotely . | . . . . . . . . . . . . . . . . . . . Salvage Created 16289 | 48 559 126 1448 1077 586 828 174 527 . 450 3541 685 1846 1235 81 597 1927 554 Parts 768 | 5 21 6 80 48 37 46 12 17 . 20 173 25 72 54 3 29 79 41 Haulers Intercepted 17 | . 1 . 4 2 . 2 . . . . 4 . 3 1 . . . . Recyclers Shooed 10 | 1 . . 2 2 3 . . . . . 1 . 1 . . . . . Parts Field Recycled . | . . . . . . . . . . . . . . . . . . . Retrieved Matter . | . . . . . . . . . . . . . . . . . . . Parts Self-Destructed 49 | . . . . . . . 11 23 . 15 . . . . . . . . Prevented 4 | . . . . . . . . 2 . 2 . . . . . . . . Parts Restored . | . . . . . . . . . . . . . . . . . . . Kills | -11 -10 -9 -8 -8 -8 -6 -6 -6 -6 -5 -5 -5 -4 -3 -2 -2 -2 -1 ------- Run | Yrd Mat Mat Mat Sto Rec Fac Low Low Dat Pro Fac Ext Fac Res Res Tes Sec Acc Combat Hostiles Destroyed 240 | . 12 2 22 19 5 12 5 10 . 10 48 9 27 19 1 5 26 8 Melee 36 | . . . 14 12 1 . . . . . . . . . . 1 3 5 Guns 39 | . 7 . . 3 . 1 2 5 . 1 6 1 7 . . . 6 . Cannons 119 | . 2 . . 3 3 10 3 2 . 7 36 5 14 15 1 3 13 2 AOE 19 | . . . 7 . . 1 . 3 . 1 . 1 4 2 . . . . Classes Destroyed 23 | 1 5 2 4 . 2 3 1 1 . . 2 . . . . 1 . 1 Worker 16 | . . . 2 . . 1 . . . . 5 . . 4 1 1 2 . Builder 13 | . 1 . 2 . . 1 . . . . 2 . 1 1 . 2 3 . Tunneler 7 | 2 . 1 2 . . . . . . . . . 2 . . . . . Hauler 17 | . 1 . 4 2 . 2 . . . . 4 . 3 1 . . . . Recycler 12 | . . . 3 1 2 . . . . . 1 . . 2 . 2 1 . Mechanic 2 | . . . . . . . . . . . 1 1 . . . . . . Operator 4 | . . 1 . 2 . . . . . . 1 . . . . . . . Drone 1 | . . . . . . . . 1 . . . . . . . . . . Watcher 11 | . 1 . 3 . . 1 . . . . 3 1 1 . . 1 . . Swarmer 57 | . 3 . 4 4 . 1 4 . . 4 13 1 8 11 . . 4 . Cutter 1 | . . . . . . 1 . . . . . . . . . . . . Grunt 67 | . 9 . 9 8 . 4 . 4 . 1 10 6 10 3 . . 3 . Brawler 7 | . . . . . . 1 . 1 . . 1 . 2 . . . 2 . Duelist 12 | . . . 1 . . 2 . 3 . . . . 2 1 . . 3 . Researcher 2 | . . . . . . . . . . . . . . . . 1 1 . Sentry 33 | . . 2 6 7 3 1 . 1 . 1 5 2 . 1 1 . 3 . Hunter 17 | . . . 2 . . . . . . 2 10 . . . . . 3 . Programmer 32 | . . . . . . 2 . . . 1 7 . 5 3 . 5 4 5 Heavy 1 | . . . . . . . . . . . 1 . . . . . . . Q-Series 2 | . . . . . . . . . . . . . . . . . . 2 Behemoth 3 | . . . . . . . 1 . . 1 1 . . . . . . . S7 Guard 1 | . . . . . . . . . . . . . . . . . 1 . Tracker 3 | . . . . . . . . . . . . . . . . . 2 1 Combat Programmer 1 | . . . . . . . . . . . . . . . . . 1 . Scientist 2 | . . . . . 2 . . . . . . . . . . . . . Scrapper 3 | . . . . . 3 . . . . . . . . . . . . . Butcher 1 | . . . . . . . . . . . . 1 . . . . . . Best Kill Streak 15 | 2 4 1 7 4 3 3 4 5 . 5 10 3 11 15 1 7 8 3 Combat Bots Only 10 | . 4 1 5 4 2 3 4 5 . 5 10 2 5 10 1 2 4 3 Max Kills in Single Turn 4 | 1 1 1 2 1 1 1 1 2 . 1 2 3 3 2 1 4 2 1 Gunslinging . | . . . . . . . . . . . . . . . . . . . Exploded 3 | . . . 2 . . 1 . 2 . 1 . 1 3 1 . . . . Melee 1 | . . . 1 1 1 . . . . . . . . . . 1 1 1 Uniques/NPCs Destroyed . | . . . . . . . . . . . . . . . . . . . Combat | -11 -10 -9 -8 -8 -8 -6 -6 -6 -6 -5 -5 -5 -4 -3 -2 -2 -2 -1 -------- Run | Yrd Mat Mat Mat Sto Rec Fac Low Low Dat Pro Fac Ext Fac Res Res Tes Sec Acc Hostile Shots Fired 2309 | . 85 4 97 96 16 63 28 107 . 65 289 36 234 119 8 184 370 508 Missed 584 | . 29 1 32 19 3 19 3 22 . 22 88 6 65 38 3 27 72 135 Deflected 9 | . . . . . . . . . . . . . . . . 9 . . Hits 1725 | . 56 3 65 77 13 44 25 85 . 43 201 30 169 81 5 157 298 373 Melee 93 | . . . 2 . . 2 . 62 . . 1 . 15 2 . . 9 . Projectile 1632 | . 56 3 63 77 13 42 25 23 . 43 200 30 154 79 5 157 289 373 AOE 3 | . . . . . . 1 . . . . 1 1 . . . . . . Critical Strikes 83 | . 1 1 1 2 3 4 . 2 . 2 4 1 10 4 . 14 16 18 Actively Blocked 12 | . . . . . . . . . . . . . 2 . . 10 . . Part Disruptions 4 | . . . . . . . . . . . . . . . . 1 . 3 Actively Blocked 2 | . . . . . . . . . . . . . . . . . . 2 Damage Taken 35636 | . 570 44 1004 1123 353 1104 501 835 . 633 3974 847 3676 1980 141 4449 5421 8981 Core 4262 | . 190 17 288 144 . 170 49 84 . 82 553 204 452 225 . 225 234 1345 Absorbed by Shields 913 | . . . . . . . . . . . . . . . . . 913 . Reduced by Siege Mode 408 | . . . . . . . . . . . . . 21 29 . . 358 . Redirected to Shielding 110 | . . . . . . . . . . . . . . . . . . 110 Ignored by Resistances 868 | . . . . . 12 38 . 16 . . . . 16 16 . 7 763 . Regen/Repaired (Parts) 11027 | . . . 62 105 22 627 . 787 101 495 1679 700 1186 1353 141 965 1752 1052 Core Remaining (%) 65 | 100 12 95 . . 70 . . . . 64 . 14 71 78 . . 82 . Volleys Fired 651 | 6 25 . 22 21 12 35 9 31 . 21 151 29 84 54 6 38 88 19 Largest 4 | 2 2 . 2 3 3 3 3 4 . 4 4 3 3 4 3 3 4 3 Hottest 382 | 80 100 . 121 189 189 224 224 236 . 301 273 361 361 382 313 368 321 339 Shots Fired 1495 | 12 46 . 30 46 18 66 27 92 . 83 379 76 205 105 13 69 202 26 Gun 447 | 12 32 . 4 31 . 10 9 29 . 3 56 47 93 10 6 32 71 2 Cannon 1028 | . 14 . 12 15 18 56 18 60 . 80 323 29 112 92 7 37 131 24 Launcher 20 | . . . 14 . . . . 3 . . . . . 3 . . . . Special . | . . . . . . . . . . . . . . . . . . . Kinetic 656 | . . . . . 6 56 9 29 . 3 238 29 55 53 7 33 123 15 Thermal 633 | 12 31 . 16 28 . 10 18 57 . 59 92 47 146 25 6 35 40 11 Explosive 17 | . . . 14 . . . . 3 . . . . . . . . . . Electromagnetic 189 | . 15 . . 18 12 . . 3 . 21 49 . 4 27 . 1 39 . Robot Hit Streak 28 | 4 10 . 7 17 16 14 15 9 . 6 18 11 15 13 10 11 28 5 Robot Miss Streak 22 | 1 4 . 6 2 2 2 2 22 . 5 4 6 2 3 2 2 6 2 Penetration Max 2 | . . . . . . . . . . . 1 1 2 . . . 1 . Secondary Targets . | . . . . . . . . . . . . . . . . . . . Shots Hit Robots 1005 | 9 39 4 73 77 22 48 16 34 . 42 189 40 126 50 10 60 136 30 Core Hits 463 | 3 17 1 40 26 9 20 6 19 . 17 98 15 61 33 3 23 61 11 Critical Kills 22 | . . . . 1 . . . 1 . 1 6 4 6 . . . 3 . Critical Parts Destroyed 24 | . 5 2 3 . . . . . . . 3 3 5 . . 1 2 . Critical Strikes 97 | . 5 2 8 4 . 2 . 2 . 4 19 7 16 5 . 3 19 1 Burn 5 | . . . . 2 . . . . . . . . 3 . . . . . Meltdown 6 | . . . . . . . . . . 1 3 2 . . . . . . Destroy 33 | . . . . . . . . 1 . . 6 5 12 . . 2 7 . Blast 21 | . . . . . . 2 . . . . 7 . . 5 . 1 6 . Corrupt 14 | . . . . . . . . 1 . 3 3 . 1 . . . 6 . Smash 11 | . 5 2 3 1 . . . . . . . . . . . . . . Sever 6 | . . . 5 1 . . . . . . . . . . . . . . Impale 1 | . . . . . . . . . . . . . . . . . . 1 Melee Attacks 286 | . 26 8 84 71 17 11 . . . . . . . . . 24 14 31 Impact 55 | . 26 8 19 1 . . . . . . . . . . . . 1 . Slashing 221 | . . . 65 70 17 11 . . . . . . . . . 20 13 25 Piercing 10 | . . . . . . . . . . . . . . . . 4 . 6 Sneak Attacks 40 | . 4 1 16 9 5 2 . . . . . . . . . 1 1 1 Combat Hostiles 2 | . 2 . . . . . . . . . . . . . . . . . Follow-up Attacks 12 | . . . 8 1 . . . . . . . . . . . . . 3 Damage Inflicted 45096 | 108 776 176 3175 2461 955 2457 742 1475 . 1558 8309 1880 6023 3038 524 3437 6365 1637 Guns 7414 | 108 296 . 60 476 . 155 164 370 . 80 802 623 1720 296 145 704 1415 . Cannons 25719 | . 88 . 129 262 451 1799 527 871 . 1392 6811 936 3545 2201 379 1397 4485 446 Explosions 4766 | . . . 733 . . 360 51 234 . 86 642 319 721 526 . 850 244 . Melee 7058 | . 389 176 2253 1723 504 140 . . . . . . . . . 486 211 1176 Ramming 95 | . 3 . . . . 3 . . . . 10 2 37 15 . . 10 15 Kinetic 16342 | . . . . . 241 1799 205 411 . 32 5165 936 1095 1060 145 761 4165 327 Thermal 14035 | 108 254 . 189 398 . 155 537 739 . 1272 1541 942 4726 460 379 1340 876 119 Explosive 2836 | . . . 733 . . 360 . 234 . . 91 . . 324 . 850 244 . Electromagnetic 4686 | . 130 . . 340 210 . . 91 . 254 1458 . 165 1179 . . 859 . Impact 954 | . 389 176 367 22 . . . . . . . . . . . . . . Slashing 5790 | . . . 1886 1701 504 140 . . . . 44 . . . . 312 211 992 Piercing 358 | . . . . . . . . . . . . . . . . 174 . 184 Highest Corruption 43 | . . 2 1 1 . . . 2 . 1 8 3 15 1 . 26 43 23 Average Corruption 11 | . . 2 1 1 . . . 2 . 1 2 3 5 1 . 24 29 15 Corruption Purged 8 | . . . . . . . . . . . 8 . . . . . . . Corruption Blocked . | . . . . . . . . . . . . . . . . . . . Effects 208 | . . 3 . . . . . 3 . 1 29 10 34 . . 20 92 16 Message Errors 49 | . . . . . . . . . . . 6 2 10 . . 5 25 1 Matter Fused 49 | . . . . . . . . . . 1 8 6 10 . . 5 13 6 Heat Flow Errors 26 | . . . . . . . . . . . 4 1 3 . . 5 10 3 Energy Discharges 17 | . . 1 . . . . . . . . 3 . 3 . . 1 9 . Parts Rejected 4 | . . . . . . . . . . . . . . . . . 3 1 Parts Fused 3 | . . . . . . . . . . . 1 . 1 . . 1 . . Data Loss (minor) 31 | . . 1 . . . . . 1 . . 6 . 4 . . 1 14 4 Data Loss (major) 8 | . . . . . . . . 1 . . . . 2 . . . 5 . Alerts 5 | . . 1 . . . . . . . . 1 . 1 . . . 2 . Misdirections 4 | . . . . . . . . . . . . . . . . 1 3 . Weapon Failures 12 | . . . . . . . . 1 . . . 1 . . . 1 8 1 Overload Shots . | . . . . . . . . . . . . . . . . . . . Overflow Damage 2481 | . 257 95 333 196 136 144 23 74 . 43 268 21 159 102 31 285 197 117 Projectiles 1054 | . . . . 17 . 110 23 68 . 43 263 21 114 80 31 87 197 . Explosions 259 | . . . 15 . . 16 . 6 . . 5 . 38 22 . 157 . . Melee 1168 | . 257 95 318 179 136 18 . . . . . . 7 . . 41 . 117 Knockbacks 114 | . 1 1 . . . 10 2 10 . 1 30 12 1 8 . . 35 3 Impact 2 | . 1 1 . . . . . . . . . . . . . . . . Kinetic 102 | . . . . . . 9 2 9 . 1 29 10 1 7 . . 31 3 Secondary 10 | . . . . . . 1 . 1 . . 1 2 . 1 . . 4 . Self-Inflicted Damage 551 | . . . . . . 78 13 79 . . 101 . . 141 . 36 96 7 Shots 14 | . . . . . . 2 1 3 . . 3 . . 3 . 1 1 . Rammed 3 | . . . . . . . . . . . . . . . . . 1 2 Targets Rammed 16 | . 2 . . . . 1 . . . . 1 1 5 2 . . 2 2 Kicked 11 | . 2 . . . . 1 . . . . 1 . 5 2 . . . . Crushed 2 | . . . . . . . . . . . . 1 . . . . 1 . Highest Temperature 847 | 72 315 8 114 278 279 387 647 486 . 847 450 603 448 460 339 627 497 541 Average Temperature 148 | 32 120 8 40 73 114 124 326 192 . 190 134 233 97 125 140 182 132 180 Received Heat Transfer 4447 | . 192 27 270 414 219 288 24 180 . 352 426 192 564 142 36 135 644 342 Effects 68 | . 3 . . . 1 2 4 4 . 7 12 11 1 . . 6 4 13 Shutdowns 16 | . 1 . . . . . 1 1 . 2 5 2 1 . . 1 1 1 Energy Bleed 12 | . . . . . 1 1 1 1 . 2 3 2 . . . . . 1 Interference 17 | . 2 . . . . . 1 2 . . . 3 . . . 2 2 5 Matter Decay 6 | . . . . . . . 1 . . . 1 2 . . . 1 1 . Short Circuit 3 | . . . . . . 1 . . . . 1 . . . . 1 . . Damage (minor) 5 | . . . . . . . . . . 1 2 1 . . . 1 . . Damage (major) 8 | . . . . . . . . . . 2 . . . . . . . 6 Damage (core) 1 | . . . . . . . . . . . . 1 . . . . . . Siege Activations 7 | . . . . . . . . . . . . . 1 1 . . 5 . Total Turns 209 | . . . . . . . . . . . . . 37 17 . . 155 . Longest Duration 59 | . . . . . . . . . . . . . 37 17 . . 59 . Martial Activations . | . . . . . . . . . . . . . . . . . . . Shielding Activations 4 | . . . . . . . . . . . . . . . . 4 . . Total Turns 71 | . . . . . . . . . . . . . . . . 71 . . Longest Duration 37 | . . . . . . . . . . . . . . . . 37 . . Robots Disrupted 4 | . . . . . 1 . . . . . 3 . . . . . . . Combat Hostiles 3 | . . . . . . . . . . . 3 . . . . . . . Robots Corrupted 19 | . 5 3 2 . 1 . . . . . 2 . 2 2 . . 2 . Combat Hostiles 14 | . 3 2 1 . 1 . . . . . 2 . 1 2 . . 2 . Parts Fried 39 | . 3 7 2 3 1 . . . . 2 7 . 2 10 . . 2 . Impact Corruptions 21 | . 8 4 6 . . . . . . . 1 1 1 . . . . . Robots Melted 7 | . . . . . . . . . . 1 3 2 1 . . . . . Combat Hostiles 7 | . . . . . . . . . . 1 3 2 1 . . . . . Parts Melted 28 | . 3 . 1 2 1 . . . . 3 6 6 5 . . . 1 . Heat Transferred 8427 | 250 560 . 333 888 . . 50 . . 831 816 850 3368 . . . 370 111 Parts Sabotaged 5 | . . . . . . . . . . . . . 4 1 . . . . Parts Stolen 1 | . . . . . . . . 1 . . . . . . . . . . Parts Stripped 23 | . . . . . . . . . . . . . . . . 11 12 . Power Chain Reactions 6 | . . . . . . . 1 . . 1 2 1 1 . . . . . Alert | -11 -10 -9 -8 -8 -8 -6 -6 -6 -6 -5 -5 -5 -4 -3 -2 -2 -2 -1 ------- Run | Yrd Mat Mat Mat Sto Rec Fac Low Low Dat Pro Fac Ext Fac Res Res Tes Sec Acc Maximum Alert Level 4 | . . . 2 2 . . . . . . 4 3 4 3 2 2 3 2 Low Security (%) 38 | 100 100 100 67 14 100 100 . . . . 30 . . . . 7 29 23 Level 1 23 | . . . 25 79 . . . . . . 21 . . . 53 77 14 60 Level 2 21 | . . . 6 6 . . . . . . 14 43 28 83 46 15 50 16 Level 3 12 | . . . . . . . . . . . 21 56 55 16 . . 6 . Level 4 3 | . . . . . . . . . . . 11 . 16 . . . . . Level 5 . | . . . . . . . . . . . . . . . . . . . High Security . | . . . . . . . . . . . . . . . . . . . Max Security . | . . . . . . . . . . . . . . . . . . . Sterilizations 1 | . . . . . . 1 . . . . . . . . . . . . Peak Influence 1328 | 10 172 34 429 451 111 95 . . . . 1328 1077 1241 831 441 490 785 470 Initial 649 | . . 27 5 179 111 12 . . . . . 649 504 626 441 124 108 470 Average 363 | 1 79 10 186 285 18 34 . . . . 482 815 882 573 320 297 361 278 Influence Increases 11121 | 10 458 85 981 848 78 437 120 278 . 276 2058 748 1383 690 41 683 1447 500 Destroy 0b10 Robot/C 5260 | . 240 40 540 400 60 240 100 240 . 200 960 360 600 380 20 140 580 160 Destroy 0b10 Robot/NC 410 | 10 15 10 80 25 10 25 . . . . 85 10 35 40 5 30 30 . Destroy Leader 1076 | . 54 20 164 114 . 46 20 10 . 40 184 42 108 52 10 22 150 40 Allied During Kill 404 | . . . 40 65 . . . 13 . 6 . 200 40 . . 8 32 . Successful Hack 101 | . 32 14 10 22 . 16 . . . . . 7 . . . . . . Disable Machine 1125 | . 15 . 30 105 . 45 . . . . 390 . 135 60 . 225 105 15 Destroy Structure 1234 | . 12 1 72 12 8 35 . . . . 274 84 206 98 6 213 183 30 Partial Spotted 15 | . . . . . . . . . . . 15 . . . . . . . Lose Combat Pursuer 1050 | . 90 . 45 105 . 30 . 15 . 30 150 45 105 60 . 45 75 255 Miscellaneous 446 | . . . . . . . . . . . . . 154 . . . 292 . Influence Decreases 10811 | 10 393 136 570 986 335 411 146 147 161 276 732 1045 1218 1100 603 712 855 975 Entered New Map 3286 | . . 38 9 246 176 18 21 6 161 . . 677 525 568 343 98 85 315 Time Decay 5992 | 10 373 98 491 490 159 383 125 121 . 273 622 278 553 482 100 474 550 410 Search Patrol Dispatched 100 | . . . . . . . . . . . . . . . . . 100 . Lost Part 860 | . 20 . 30 70 . 10 . 20 . . 110 10 120 50 10 80 80 250 Lost Ally 423 | . . . 40 180 . . . . . 3 . 80 20 . . 60 40 . Purge Threat 150 | . . . . . . . . . . . . . . . 150 . . . Squads Dispatched 68 | . 1 . 3 5 . 8 . 1 . . 14 2 8 5 1 4 12 4 Investigation 3 | . 1 . 1 . . . . . . . 1 . . . . . . . Extermination 19 | . . . . . . 1 . . . . 6 . 2 2 1 3 1 3 Reinforcement 16 | . . . 2 3 . 3 . . . . 3 2 . . . 1 2 . Assault 22 | . . . . 2 . 4 . 1 . . 1 . 6 3 . . 5 . Garrison 6 | . . . . . . . . . . . 3 . . . . . 3 . Intercept 2 | . . . . . . . . . . . . . . . . . 1 1 Searches Triggered 1 | . . . . . . . . . . . . . . . . . 1 . Data Miner Redirects 3 | . . . . . . . . . . . 1 . 1 . . . 1 . Construction Impeded 2 | . . . . . . 1 . . . . 1 . . . . . . . Haulers Reinforced 2 | . . . . . . 1 . . . . 1 . . . . . . . Active Scanning Responses . | . . . . . . . . . . . . . . . . . . . Cargo Convoy Interrupts . | . . . . . . . . . . . . . . . . . . . Stealth | -11 -10 -9 -8 -8 -8 -6 -6 -6 -6 -5 -5 -5 -4 -3 -2 -2 -2 -1 --------- Run | Yrd Mat Mat Mat Sto Rec Fac Low Low Dat Pro Fac Ext Fac Res Res Tes Sec Acc Distress Signals 14 | . 1 . 2 . . . . . . . 3 5 . . . . 1 2 Communications Jammed . | . . . . . . . . . . . . . . . . . . . Distress Signals . | . . . . . . . . . . . . . . . . . . . Times Spotted 402 | . 17 4 36 35 4 14 5 14 . 11 69 23 55 26 2 10 40 37 Peak Tracking Total 14 | . 4 1 8 5 4 3 4 7 . 4 10 6 7 8 1 5 7 14 Tactical Retreats 43 | . 5 . 3 5 . 2 . 1 . 2 7 1 5 3 . 1 3 5 Traps | -11 -10 -9 -8 -8 -8 -6 -6 -6 -6 -5 -5 -5 -4 -3 -2 -2 -2 -1 ------- Run | Yrd Mat Mat Mat Sto Rec Fac Low Low Dat Pro Fac Ext Fac Res Res Tes Sec Acc Traps Triggered 19 | . 2 1 6 1 . 4 . . . . 3 . 2 . . . . . Indirectly . | . . . . . . . . . . . . . . . . . . . Trap Hack Attempts . | . . . . . . . . . . . . . . . . . . . Triggered . | . . . . . . . . . . . . . . . . . . . Disarmed . | . . . . . . . . . . . . . . . . . . . Reprogrammed . | . . . . . . . . . . . . . . . . . . . Reused . | . . . . . . . . . . . . . . . . . . . Traps Extracted . | . . . . . . . . . . . . . . . . . . . Installed . | . . . . . . . . . . . . . . . . . . . Triggered . | . . . . . . . . . . . . . . . . . . . Most Traps Carried 1 | . . . . . . . . . . . . . 1 1 1 1 1 1 Machines | -11 -10 -9 -8 -8 -8 -6 -6 -6 -6 -5 -5 -5 -4 -3 -2 -2 -2 -1 ---------- Run | Yrd Mat Mat Mat Sto Rec Fac Low Low Dat Pro Fac Ext Fac Res Res Tes Sec Acc Machines Disabled 76 | . 1 . 2 7 . 3 . . . . 26 . 9 4 . 15 8 1 Max in Single Turn 4 | . 1 . 1 1 . 2 . . . . 4 . 3 1 . 4 1 1 Garrison Access 4 | . . . . . . 2 . . . . 1 . . 1 . . . . Machines Repaired . | . . . . . . . . . . . . . . . . . . . Machines Dismantled . | . . . . . . . . . . . . . . . . . . . Machines Sabotaged . | . . . . . . . . . . . . . . . . . . . Overloaded Fab Kills . | . . . . . . . . . . . . . . . . . . . Hacking | -11 -10 -9 -8 -8 -8 -6 -6 -6 -6 -5 -5 -5 -4 -3 -2 -2 -2 -1 --------- Run | Yrd Mat Mat Mat Sto Rec Fac Low Low Dat Pro Fac Ext Fac Res Res Tes Sec Acc Machines Accessed 54 | . 7 1 4 4 4 6 . . 4 . 6 2 5 4 2 3 . 2 Terminals 30 | . 7 1 2 3 1 4 . . . . 2 2 2 2 1 2 . 1 Fabricators . | . . . . . . . . . . . . . . . . . . . Repair Stations 2 | . . . 1 1 . . . . . . . . . . . . . . Recycling Units 8 | . . . . . 1 1 . . . . 2 . 1 1 1 . . 1 Scanalyzers 4 | . . . 1 . . . . . . . 1 . 2 . . . . . Garrison Access 4 | . . . . . . 1 . . . . 1 . . 1 . 1 . . Total Hacks 167 | . 19 2 14 12 26 15 . . 31 . 12 2 10 6 7 8 . 3 Successful 112 | . 12 1 8 10 23 8 . . 31 . 6 1 2 2 5 3 . . Failed 54 | . 7 1 5 2 3 7 . . . . 6 1 8 4 2 5 . 3 Catastrophic 12 | . . 1 2 . . 2 . . . . 2 . 2 2 . . . 1 Database Lockouts 1 | . . . 1 . . . . . . . . . . . . . . . Manual 26 | . 11 . 2 4 . 4 . . . . 1 . . . 4 . . . Terminals 79 | . 19 2 9 10 4 11 . . . . 3 2 4 2 5 6 . 2 Fabricators . | . . . . . . . . . . . . . . . . . . . Repair Stations 4 | . . . 2 2 . . . . . . . . . . . . . . Recycling Units 16 | . . . . . 1 2 . . . . 5 . 2 3 2 . . 1 Scanalyzers 9 | . . . 3 . . . . . . . 2 . 4 . . . . . Garrison Access 7 | . . . . . . 2 . . . . 2 . . 1 . 2 . . Terminal Hacks 83 | . 6 1 3 7 22 4 . . 31 . 1 1 1 . 3 3 . . Record 37 | . 1 . 1 . 20 2 . . 11 . 1 . . . 1 . . . Part Schematic 13 | . . . . 1 . . . . 12 . . . . . . . . . Robot Schematic 5 | . . . . . . . . . 5 . . . . . . . . . Prototype ID Bank 4 | . . . . 1 . . . . 3 . . . . . . . . . Open Door 3 | . . . . 1 . . . . . . . 1 . . . 1 . . Branch Access Points 3 | . . 1 . 1 . 1 . . . . . . . . . . . . Terminal Index 1 | . 1 . . . . . . . . . . . . . . . . . Alert Level 6 | . 1 . . 2 . . . . . . . . 1 . 1 1 . . Unreport Threat 1 | . . . . . . . . . . . . . . . 1 . . . Locate Traps 2 | . . . . . . 1 . . . . . . . . . 1 . . Hauler Manifests 1 | . . . 1 . . . . . . . . . . . . . . . Registered Components 1 | . . . 1 . . . . . . . . . . . . . . . Zone Layout 4 | . 3 . . 1 . . . . . . . . . . . . . . Release Object 2 | . . . . . 2 . . . . . . . . . . . . . Fabricator Hacks . | . . . . . . . . . . . . . . . . . . . Repair Station Hacks 4 | . . . 2 2 . . . . . . . . . . . . . . Scan Component 2 | . . . 1 1 . . . . . . . . . . . . . . Repair 2 | . . . 1 1 . . . . . . . . . . . . . . Recycling Unit Hacks 8 | . . . . . 1 2 . . . . 2 . 1 1 1 . . . Report Inventory 6 | . . . . . 1 1 . . . . 1 . 1 1 1 . . . Retrieve Components 2 | . . . . . . 1 . . . . 1 . . . . . . . Scanalyzer 4 | . . . 2 . . . . . . . 2 . . . . . . . Insert Component 1 | . . . . . . . . . . . 1 . . . . . . . Analyze 1 | . . . . . . . . . . . 1 . . . . . . . Retrieve Study 2 | . . . 2 . . . . . . . . . . . . . . . Garrison Access Hacks 2 | . . . . . . . . . . . 1 . . 1 . . . . Seal Access 2 | . . . . . . . . . . . 1 . . 1 . . . . Unauthorized Hacks 11 | . 6 . 1 1 . 2 . . . . . . . . 1 . . . Terminals 11 | . 6 . 1 1 . 2 . . . . . . . . 1 . . . Botnet 11 | . 6 . 1 1 . 2 . . . . . . . . 1 . . . Fabricators . | . . . . . . . . . . . . . . . . . . . Repair Stations . | . . . . . . . . . . . . . . . . . . . Recycling Units . | . . . . . . . . . . . . . . . . . . . Scanalyzers . | . . . . . . . . . . . . . . . . . . . Garrison Access . | . . . . . . . . . . . . . . . . . . . Data Cores Recovered 1 | . . 1 . . . . . . . . . . . . . . . . Used 1 | . . 1 . . . . . . . . . . . . . . . . Hacking Detections 41 | . 6 1 3 4 2 5 . . . . 5 1 5 3 2 2 . 2 Full Trace Events 1 | . . . 1 . . . . . . . . . . . . . . . Feedback Events 1 | . . . 1 . . . . . . . . . . . . . . . Corruption 1 | . . . 1 . . . . . . . . . . . . . . . Feedback Blocked . | . . . . . . . . . . . . . . . . . . . Robot Schematics Acquired 7 | . . . . . . . . . 5 . . . . . . 1 1 . Robots Built . | . . . . . . . . . . . . . . . . . . . Authchips . | . . . . . . . . . . . . . . . . . . . Time . | . . . . . . . . . . . . . . . . . . . Total Robot Build Rating . | . . . . . . . . . . . . . . . . . . . Part Schematics Acquired 23 | . . . . 1 . . . . 12 . 1 . . . . 5 4 . Parts Built . | . . . . . . . . . . . . . . . . . . . Authchips . | . . . . . . . . . . . . . . . . . . . Time . | . . . . . . . . . . . . . . . . . . . Total Part Build Rating . | . . . . . . . . . . . . . . . . . . . Part Studies Acquired 2 | . . . 2 . . . . . . . . . . . . . . . Parts Repaired 2 | . . . 1 1 . . . . . . . . . . . . . . Time 89 | . . . 38 51 . . . . . . . . . . . . . . Parts Recycled . | . . . . . . . . . . . . . . . . . . . Recycled Matter . | . . . . . . . . . . . . . . . . . . . Retrieved Matter . | . . . . . . . . . . . . . . . . . . . Retrieved Components 3 | . . . . . . 1 . . . . 2 . . . . . . . Parts Scanalyzed 1 | . . . . . . . . . . . 1 . . . . . . . Part Schematics Acquired 1 | . . . . . . . . . . . 1 . . . . . . . Parts Damaged 1 | . . . . . . . . . . . 1 . . . . . . . Bothacking | -11 -10 -9 -8 -8 -8 -6 -6 -6 -6 -5 -5 -5 -4 -3 -2 -2 -2 -1 ------------ Run | Yrd Mat Mat Mat Sto Rec Fac Low Low Dat Pro Fac Ext Fac Res Res Tes Sec Acc Used RIF Installer . | . . . . . . . . . . . . . . . . . . . Robots Hacked . | . . . . . . . . . . . . . . . . . . . Non-combat . | . . . . . . . . . . . . . . . . . . . Combat . | . . . . . . . . . . . . . . . . . . . Robot Hacks Applied . | . . . . . . . . . . . . . . . . . . . Relay Couplers Released 1 | . . . . . . 1 . . . . . . . . . . . . Machine Destruction 1 | . . . . . . 1 . . . . . . . . . . . . Fabnet Peak Effective % . | . . . . . . . . . . . . . . . . . . . Robots Rewired 15 | . . . . 1 . . . 2 . . . 12 . . . . . . Allies Hacked . | . . . . . . . . . . . . . . . . . . . Hacks Repelled . | . . . . . . . . . . . . . . . . . . . Allies | -11 -10 -9 -8 -8 -8 -6 -6 -6 -6 -5 -5 -5 -4 -3 -2 -2 -2 -1 -------- Run | Yrd Mat Mat Mat Sto Rec Fac Low Low Dat Pro Fac Ext Fac Res Res Tes Sec Acc Total Allies 32 | . . . 3 10 . . . 2 . . . 12 . . . 3 2 . Largest Group 10 | . . . 3 10 . . . 2 2 2 . 10 3 . . 3 2 . Highest-Rated Group 314 | . . . 63 173 . . . 52 52 52 . 314 90 . . 90 238 . Highest-Rated Ally 119 | . . . 21 29 . . . 32 32 32 . 39 39 . . 30 119 . Total Orders . | . . . . . . . . . . . . . . . . . . . Ally Attacks 204 | . . . 29 30 . . . 1 . 4 . 66 15 . . 47 12 . Total Damage 4018 | . . . 572 346 . . . 47 . 165 . 1201 263 . . 629 795 . Kills 29 | . . . 6 2 . . . 2 . . . 13 3 . . 1 2 . Allies Corrupted . | . . . . . . . . . . . . . . . . . . . Allies Melted . | . . . . . . . . . . . . . . . . . . . X0-1V1 Amusement Gains 543 | . 20 5 30 40 50 55 . 10 . 10 45 45 60 55 . 9 79 30 Good Acts 116 | . . . 9 8 5 9 7 5 . 6 26 1 5 5 1 9 13 7 Bad Acts 64 | . . 1 4 . 1 2 3 5 . 2 12 . 9 5 2 8 6 4 Intel | -11 -10 -9 -8 -8 -8 -6 -6 -6 -6 -5 -5 -5 -4 -3 -2 -2 -2 -1 ------- Run | Yrd Mat Mat Mat Sto Rec Fac Low Low Dat Pro Fac Ext Fac Res Res Tes Sec Acc Active Infowar (turns) 12185 | 11 1057 344 1343 905 . 567 188 260 . . 1448 205 1497 1258 215 695 1515 677 Sensors 6509 | . . . . . . . 188 260 . . 1341 205 835 999 215 678 1170 618 IFF 57 | . . . . . . . . . . . . . . . . . . 57 Terrain 5387 | . . . . . . 567 . . . . . . 1044 990 162 651 1365 608 Structural 3162 | . 912 343 1078 829 . . . . . . . . . . . . . . Seismic 2244 | 11 145 344 1177 567 . . . . . . . . . . . . . . Cloaking 286 | . . . . . . . . . . . . . . 274 12 . . . Jamming 887 | . . . . . . . . . . . 107 . . 767 13 . . . Robot Analysis Total . | . . . . . . . . . . . . . . . . . . . Derelict Logs Recovered 3 | . . . . . . . 1 1 . 1 . . . . . . . . Drone Launches . | . . . . . . . . . . . . . . . . . . . Drone Recoveries . | . . . . . . . . . . . . . . . . . . . Exploration | -11 -10 -9 -8 -8 -8 -6 -6 -6 -6 -5 -5 -5 -4 -3 -2 -2 -2 -1 ------------- Run | Yrd Mat Mat Mat Sto Rec Fac Low Low Dat Pro Fac Ext Fac Res Res Tes Sec Acc Turns Passed 18228 | 95 1234 344 1370 1286 873 1084 389 632 101 758 2572 601 1618 1258 215 1209 1595 994 Spaces Moved 10277 | 51 646 189 664 534 448 791 326 474 78 652 1748 323 858 830 183 562 347 573 Core 73 | 5 . . . . . . . . . . . . . . . . . 68 Treads 2606 | . . 10 160 241 201 472 326 459 . . . 89 203 87 . 23 308 27 Legs 4806 | 46 646 179 504 272 247 319 . . . 411 491 234 655 639 . 160 . 3 Wheels 766 | . . . . . . . . . . . 100 . . 104 183 379 . . Hover 1523 | . . . . 21 . . . 15 78 241 1157 . . . . . 11 . Flight 301 | . . . . . . . . . . . . . . . . . 4 297 Fastest Speed 50 | 50 120 120 105 105 98 98 98 98 98 98 98 76 117 91 91 91 305 50 Average Speed 132 | 120 155 151 131 163 146 104 98 98 98 98 110 103 137 122 91 134 368 183 Slowest Speed 2450 | 190 190 190 260 260 209 172 98 98 98 98 112 117 182 188 91 347 491 2450 Overloaded Moves . | . . . . . . . . . . . . . . . . . . . Propulsion Burnouts . | . . . . . . . . . . . . . . . . . . . Robots Hopped . | . . . . . . . . . . . . . . . . . . . Potential Cave-ins 7 | . . . . . . . . . . . . . 3 3 . 1 . . Cave-ins Triggered . | . . . . . . . . . . . . . . . . . . . Spacefolds 11 | . . . . . . . . . . . . . . . . . . 11 Microwarps 16 | . . . . . . . . . . . . . . . . . 2 14 Exploration Rate (%) 41 | 4 94 22 54 63 66 20 49 57 68 84 44 45 18 20 4 43 13 15 Regions Visited 18 Branch Regions 9 Pre-discovered Areas 2 | . . . . . . . 1 . 1 . . . . . . . . . Known Exits Taken 15 | . . . 1 1 1 1 1 1 1 1 1 1 1 1 1 1 1 . Unknown Exits Taken 3 | 1 1 1 . . . . . . . . . . . . . . . . Scrap Searched 9 | . . . . . . . 4 2 . 3 . . . . . . . . Spaces Dug 158 | . 9 1 9 9 7 11 . 3 . . 60 2 10 14 . 8 9 6 Terrain Destroyed 759 | . 9 1 78 10 8 33 12 39 . 34 161 43 118 51 2 93 57 10 Melee 51 | . 9 1 9 9 7 7 . . . . . . . . . 5 2 2 Projectile 384 | . . . 2 1 1 14 10 34 . 27 144 32 41 28 2 18 22 8 AOE 324 | . . . 67 . . 12 2 5 . 7 17 11 77 23 . 70 33 . Terrain Rammed . | . . . . . . . . . . . . . . . . . . . Walls Destroyed . | . . . . . . . . . . . . . . . . . . . Machines Disabled . | . . . . . . . . . . . . . . . . . . . Actions | -11 -10 -9 -8 -8 -8 -6 -6 -6 -6 -5 -5 -5 -4 -3 -2 -2 -2 -1 --------- Run | Yrd Mat Mat Mat Sto Rec Fac Low Low Dat Pro Fac Ext Fac Res Res Tes Sec Acc Total 13353 | 69 782 234 1012 787 626 968 375 573 103 728 2129 533 1130 982 219 923 577 603 Wait 1534 | 1 50 24 166 85 119 99 25 39 25 32 150 63 140 56 16 231 111 102 Move 10084 | 50 645 188 663 533 447 790 325 473 77 651 1747 322 857 829 182 561 324 420 Hop . | . . . . . . . . . . . . . . . . . . . Pick Up 141 | 4 10 4 13 13 6 11 6 5 . 10 20 . 7 14 1 13 3 1 Fast Attach 85 | 7 2 1 19 6 1 3 . 2 . 1 5 1 9 5 1 9 7 6 Attach 76 | . 2 2 4 5 1 3 1 6 . 1 10 . 8 3 5 4 10 11 Detach 45 | . 2 1 3 . 3 2 . 1 . 1 3 1 4 3 3 6 7 5 Swap 160 | 1 12 2 29 22 3 3 4 1 . 2 19 8 11 9 3 20 9 2 Drop 152 | . 6 4 24 13 17 10 5 3 1 9 19 . 5 7 2 17 2 8 Fire 651 | 6 25 . 22 21 12 35 9 31 . 21 151 29 84 54 6 38 88 19 Melee 265 | . 26 8 69 70 17 11 . . . . . . . . . 24 13 27 Ram 2 | . . . . . . . . . . . . . . . . . . 2 Kick 11 | . 2 . . . . 1 . . . . 1 . 5 2 . . . . Crush 3 | . . . . . . . . . . . . 1 . . . . 2 . Escape Stasis 1 | . . . . . . . . . . . . . . . . . 1 . Rewire 143 | . . . . 19 . . . 12 . . 4 108 . . . . . . Trap . | . . . . . . . . . . . . . . . . . . . Miscellaneous . | . . . . . . . . . . . . . . . . . . . Route ------- -11/Scrapyard -10/Materials (discovered 6 exits: *Mat x3 / [*Min x2] / [*Sub]) -9/Materials (discovered 2 exits: *Mat / Min) -8/Materials (discovered 2 exits: [*Fac] / *Sto) -8/Storage -8/Recycling -6/Factory (discovered 3 exits: Fac / *Low x2) -6/Lower Caves -6/Lower Caves -6/Data Miner -5/Proximity Caves -5/Factory (discovered 4 exits: Fac / *Upp x2 / *Ext) -5/Extension -4/Factory (discovered 2 exits: *Res / *Upp) -3/Research (discovered 2 exits: *Res / [Qua]) -2/Research -2/Testing (discovered 3 exits: *Acc / *Sec / *Frg) -2/Section 7 -1/Access (discovered 2 exits: Sur / Com) History --------- Turn | Location | Event 15 | -11/Scrapyard | Discovered new exit (range 16) 96 | -11/Scrapyard | Entered Materials 301 | -10/Materials | Build established: Mutant 382 | -10/Materials | Discovered new exit (range 7) 438 | -10/Materials | Discovered new exit (range 15) 652 | -10/Materials | Core integrity fell below 50% 768 | -10/Materials | Discovered new exit (range 15) 869 | -10/Materials | Discovered new exit (range 14) 1079 | -10/Materials | Discovered new exit (range 4) 1285 | -10/Materials | Discovered new exit (range 11) 1306 | -10/Materials | Made a sacrifice at D.C.S.S. Altar Unit 1307 | -10/Materials | Core integrity fell below 20% 1330 | -10/Materials | Entered another Materials area 1330 | -9/Materials | Evolved 2 slots: Utility x2 1610 | -9/Materials | Discovered new exit (range 8) 1611 | -9/Materials | Identified exit to Mines 1674 | -9/Materials | Entered another Materials area 1674 | -8/Materials | Evolved 2 slots: Propulsion x1, Weapon x1 2242 | -8/Materials | Ranged accuracy permanently improved by X0-1V1 (+5%; -50 max core) 2445 | -8/Materials | X0-1V1 sent you to a vault 2452 | -8/Materials | Discovered new exit (range 5) 2504 | -8/Materials | Identified exit to Storage 2580 | -8/Materials | Build established: Scavenger-Mutant 2784 | -8/Materials | X0-1V1 vaporized surrounding terrain (radius 15) 2784 | -8/Materials | Discovered new exit (range 9) 2946 | -8/Materials | Repaired Carbon-fiber Leg 3002 | -8/Materials | Central database locked down 3044 | -8/Materials | Entered Storage 3045 | -8/Storage | Core integrity fell below 50% 3127 | -8/Storage | EX resistance permanently improved by X0-1V1 (+15%; -150 max core) 3911 | -8/Storage | Build established: Mutant 3988 | -8/Storage | Repaired Hvy. Ion Engine 4024 | -8/Storage | Core integrity restored by X0-1V1 (+80) 4036 | -8/Storage | X0-1V1 activates XOMVISION 4099 | -8/Storage | Identified exit to Recycling 4102 | -8/Storage | Assisted by bots powering up and referring to "LRC-V3" 4244 | -8/Storage | First assault squad dispatched 4297 | -8/Storage | Used back door to open Recycling access 4330 | -8/Storage | Entered Recycling 4342 | -8/Recycling | Lost 7 allies 4411 | -8/Recycling | Scanned before Scraplab entrance 4435 | -8/Recycling | Entered Scraplab 4449 | -8/Recycling | Discovered new exit (range 3) 4483 | -8/Recycling | Angered Scraplab inhabitants 4586 | -8/Recycling | Found Prototype Device 4586 | -8/Recycling | Identified Scrap Engine 4871 | -8/Recycling | Identified exit to Factory 4871 | -8/Recycling | X0-1V1 revealed exit location to -6/Factory 4899 | -8/Recycling | Melee accuracy permanently improved by X0-1V1 (+7%; -70 max core) 5056 | -8/Recycling | Build established: Construct 5203 | -8/Recycling | Entered Factory 5203 | -6/Factory | Evolved 4 slots: Propulsion x1, Utility x2, Weapon x1 5246 | -6/Factory | Identified exit to Factory 5246 | -6/Factory | X0-1V1 revealed exit location to -5/Factory 5316 | -6/Factory | X0-1V1 released a cloud of subatomizers 5584 | -6/Factory | Identified exit to Lower Caves 5655 | -6/Factory | X0-1V1 activates XOMVISION 5738 | -6/Factory | X0-1V1 foreshadows a heat wave 5918 | -6/Factory | Ambient heat levels rising (+10) 6078 | -6/Factory | Sterilization system engaged 6078 | -6/Factory | Non-combat units ordered to evacuate 6111 | -6/Factory | Ambient heat levels rising (+10) 6178 | -6/Factory | Combat units ordered to evacuate 6222 | -6/Factory | Ambient heat levels falling (-10) 6287 | -6/Factory | Entered Lower Caves 6367 | -6/Lower Caves | Spotted B-75 Beast 6382 | -6/Lower Caves | Destroyed B-75 Beast 6389 | -6/Lower Caves | X0-1V1 activates XOMVISION 6415 | -6/Lower Caves | Encountered a Warlord checkpoint 6591 | -6/Lower Caves | Identified exit to Lower Caves 6591 | -6/Lower Caves | X0-1V1 revealed exit location to -6/Lower Caves 6659 | -6/Lower Caves | Core integrity restored by X0-1V1 (+87) 6676 | -6/Lower Caves | Entered another Lower Caves area 6748 | -6/Lower Caves | Found DCF Scrap (14 items) 6919 | -6/Lower Caves | Imp. Cryofiber Web reconfigured into Item Mimic 6933 | -6/Lower Caves | Imp. Cryofiber Web reconfigured into Item Mimic 7107 | -6/Lower Caves | Discovered new exit (range 5) 7108 | -6/Lower Caves | Attracted the attention of an 0b10 outpost 7307 | -6/Lower Caves | Identified exit to Data Miner 7308 | -6/Lower Caves | Entered Data Miner 7308 | -6/Data Miner | Accompanied by 2 allies 7308 | -6/Data Miner | Discovered new exit (range 7) 7327 | -6/Data Miner | Met Data Miner 7344 | -6/Data Miner | Learned location of Section 7 (-2) 7344 | -6/Data Miner | Acquired the access code to Warlord's prototype stash 7362 | -6/Data Miner | Received God Mode back door access code from Data Miner 7384 | -6/Data Miner | Identified exit to Proximity Caves 7409 | -6/Data Miner | Entered Proximity Caves 7409 | -5/Proximity Caves | Accompanied by 2 allies 7483 | -5/Proximity Caves | Learned Factory terminal intel 7507 | -5/Proximity Caves | Spotted B-75 Beast 7543 | -5/Proximity Caves | Destroyed B-75 Beast 7635 | -5/Proximity Caves | Core integrity fell below 50% 7643 | -5/Proximity Caves | X0-1V1 mutated your Utility slot to Power slot 7727 | -5/Proximity Caves | Core integrity restored by X0-1V1 (+92) 7868 | -5/Proximity Caves | X0-1V1 activates XOMVISION 7893 | -5/Proximity Caves | X0-1V1 vaporized surrounding terrain (radius 16) 8119 | -5/Proximity Caves | Discovered exit to Factory (range 15) 8167 | -5/Proximity Caves | Entered Factory 8167 | -5/Factory | Evolved 2 slots: Utility x2 8168 | -5/Factory | Identified exit to Upper Caves 8169 | -5/Factory | Loaded intel: 28 terminal locations 8271 | -5/Factory | Discovered exit to Upper Caves (range 7) 8287 | -5/Factory | X0-1V1 announced a LAN party 8421 | -5/Factory | X0-1V1 vaporized surrounding terrain (radius 16) 8437 | -5/Factory | X0-1V1 enhanced Transport squad support 9431 | -5/Factory | Identified exit to Extension 9431 | -5/Factory | X0-1V1 revealed exit location to -5/Extension 9967 | -5/Factory | First assault squad dispatched 9992 | -5/Factory | Incoming assault squad redirected 10139 | -5/Factory | Found Prototype Launcher 10224 | -5/Factory | Core integrity fell below 50% 10248 | -5/Factory | X0-1V1 activates XOMVISION 10421 | -5/Factory | Garrison activated, responded to threat 10500 | -5/Factory | Destroyed 10 combat bots 10513 | -5/Factory | Core integrity restored by X0-1V1 (+131) 10548 | -5/Factory | Spotted B-75 Beast 10564 | -5/Factory | Destroyed B-75 Beast 10586 | -5/Factory | Lost 4 parts (1p1u2w) 10682 | -5/Factory | Identified exit to Factory 10682 | -5/Factory | X0-1V1 revealed exit location to -4/Factory 10739 | -5/Factory | Entered Extension 10745 | -5/Extension | X0-1V1 dreamt of freedom 10755 | -5/Extension | Rescued a captive Derelict 10757 | -5/Extension | Rescued a captive Derelict 10764 | -5/Extension | Rescued a captive Derelict 10765 | -5/Extension | Rescued a captive Derelict 11176 | -5/Extension | Core integrity fell below 20% 11205 | -5/Extension | Lost 5 allies 11257 | -5/Extension | Spotted B-75 Beast 11266 | -5/Extension | Allies destroyed B-75 Beast 11303 | -5/Extension | Discovered exit to Factory (range 16) 11340 | -5/Extension | Entered Factory 11340 | -4/Factory | Accompanied by 3 allies 11340 | -4/Factory | Evolved 2 slots: Utility x2 11365 | -4/Factory | Discovered new exit (range 13) 11420 | -4/Factory | Identified exit to Upper Caves 11426 | -4/Factory | X0-1V1 rewrote UR-A1B(g) IFF filter 11798 | -4/Factory | X0-1V1 added 0b10 threat records associated with you (minor) 11840 | -4/Factory | First assault squad dispatched 11960 | -4/Factory | X0-1V1 vaporized surrounding terrain (radius 18) 12026 | -4/Factory | X0-1V1 sent you into danger 12052 | -4/Factory | X0-1V1 upgraded hostiles (x1) 12363 | -4/Factory | Incoming assault squad redirected 12587 | -4/Factory | Identified exit to Research 12587 | -4/Factory | X0-1V1 revealed exit location to -3/Research 12595 | -4/Factory | Core integrity restored by X0-1V1 (+202) 12729 | -4/Factory | System corruption reached 10% 12762 | -4/Factory | Lost 3 parts (2u1w) 12804 | -4/Factory | X0-1V1 sent you to a vault 12828 | -4/Factory | Found Prototype Device 12828 | -4/Factory | Identified Exp. EM Disruption Field 12829 | -4/Factory | Lost 3 parts (1p1u1w) 12840 | -4/Factory | Found Chaos Jack 12958 | -4/Factory | Entered Research 12958 | -3/Research | Evolved 2 slots: Utility x1, Weapon x1 12959 | -3/Research | Identified Tesla Bomb Launcher 13065 | -3/Research | X0-1V1 downgraded hostiles (x1) 13123 | -3/Research | X0-1V1 announced a LAN party 13560 | -3/Research | Discovered new exit (range 24) 13708 | -3/Research | First assault squad dispatched 13940 | -3/Research | X0-1V1 activates XOMVISION 14052 | -3/Research | Destroyed 10 combat bots 14165 | -3/Research | Discovered new exit (range 20) 14216 | -3/Research | Identified exit to Research 14216 | -3/Research | Entered another Research area 14216 | -2/Research | Evolved 2 slots: Power x1, Utility x1 14245 | -2/Research | X0-1V1 enhanced Transport squad support 14412 | -2/Research | Discovered new exit (range 15) 14428 | -2/Research | Identified exit to Testing 14431 | -2/Research | Entered Testing 14517 | -2/Testing | Build established: Hacker-Construct 14527 | -2/Testing | Found Prototype Protection 14527 | -2/Testing | Identified Med. Regenerative Plating 14638 | -2/Testing | X0-1V1 enhanced Transport squad support 14651 | -2/Testing | X0-1V1 sent you to a vault 14653 | -2/Testing | Found Prototype Processor 14653 | -2/Testing | Identified Exp. Armor Integrity Analyzer 14669 | -2/Testing | Found Prototype Slashing Weapon 14669 | -2/Testing | Identified Hvy. Scimitar of Distortion 14673 | -2/Testing | Found Hvy. Scimitar of Distortion 14678 | -2/Testing | Found Adv. Force Booster 14741 | -2/Testing | Discovered new exit (range 21) 14802 | -2/Testing | Found Prototype Device 14802 | -2/Testing | Identified Exp. Thermal Shield 14809 | -2/Testing | Identified exit to Access 15033 | -2/Testing | X0-1V1 announced a LAN party 15036 | -2/Testing | X0-1V1 redirected Transport squads to designated parking area 15073 | -2/Testing | Spotted Fortress 15127 | -2/Testing | X0-1V1 sent allied S-43 Plague (x3) 15148 | -2/Testing | Allies destroyed Fortress 15215 | -2/Testing | Lost 3 allies 15217 | -2/Testing | System corruption reached 10% 15292 | -2/Testing | Lost 6 parts (1p2n3w) 15315 | -2/Testing | Found Prototype Device 15315 | -2/Testing | Identified Thermal Barrier 15323 | -2/Testing | Found Prototype Device 15323 | -2/Testing | Identified Exp. EM Shield 15337 | -2/Testing | Found Prototype Device 15337 | -2/Testing | Identified Exp. Force Field 15507 | -2/Testing | Build established: Mutant 15602 | -2/Testing | Discovered new exit (range 6) 15602 | -2/Testing | Discovered new exit (range 7) 15616 | -2/Testing | Identified exit to Section 7 15626 | -2/Testing | Identified exit to Protoforge 15640 | -2/Testing | Entered Section 7 15654 | -2/Section 7 | X0-1V1 redirected Transport squads to designated parking area 15838 | -2/Section 7 | Scanned by Researcher 15841 | -2/Section 7 | Spotted S7 Guard 15895 | -2/Section 7 | Build established: Construct 15908 | -2/Section 7 | Destroyed S7 Guard 15970 | -2/Section 7 | Found Alien Artifact 15970 | -2/Section 7 | Identified Core Regenerator 15970 | -2/Section 7 | Used Core Regenerator, restored core integrity (+258) 16081 | -2/Section 7 | X0-1V1 added 0b10 threat records associated with you (major) 16088 | -2/Section 7 | Found Alien Artifact 16088 | -2/Section 7 | Identified Spacefold Activator 16140 | -2/Section 7 | Search patrols dispatched 16274 | -2/Section 7 | Garrison activated, responded to threat 16390 | -2/Section 7 | First assault squad dispatched 16437 | -2/Section 7 | System corruption reached 30% 16680 | -2/Section 7 | X0-1V1 sent you to a vault 16787 | -2/Section 7 | Found Adv. Force Booster 16802 | -2/Section 7 | Found Prototype Launcher 16807 | -2/Section 7 | Found Prototype Hackware 16998 | -2/Section 7 | X0-1V1 revealed exit location to -1/Access 17044 | -2/Section 7 | Intercept squad dispatched 17058 | -2/Section 7 | Spotted Tracker 17059 | -2/Section 7 | Spotted Tracker 17066 | -2/Section 7 | Spotted Combat Programmer 17081 | -2/Section 7 | Destroyed Tracker 17083 | -2/Section 7 | Destroyed Tracker 17085 | -2/Section 7 | Spotted Combat Programmer 17109 | -2/Section 7 | Destroyed Combat Programmer 17131 | -2/Section 7 | X0-1V1 sent allied Executioner (x2) 17136 | -2/Section 7 | Allies destroyed Combat Programmer 17144 | -2/Section 7 | Lost 3 parts (2u1w) 17144 | -2/Section 7 | Found Prototype Device 17144 | -2/Section 7 | Identified Exp. Phase Shifter 17165 | -2/Section 7 | Incoming assault squad redirected 17174 | -2/Section 7 | Found Alien Artifact 17174 | -2/Section 7 | Identified Microwarp Drive 17235 | -2/Section 7 | Entered Access 17235 | -1/Access | Evolved 2 slots: Propulsion x1, Utility x1 17385 | -1/Access | Identified exit to Command 17385 | -1/Access | X0-1V1 revealed exit location to -1/Command 17848 | -1/Access | Identified Containment Facilitator 17916 | -1/Access | Lost 9 parts (6u3w) 17935 | -1/Access | System corruption reached 10% 17959 | -1/Access | Identified exit to Surface 17959 | -1/Access | X0-1V1 revealed exit location to -0/Surface 18026 | -1/Access | Lost 3 parts (2u1w) 18043 | -1/Access | Intercept squad dispatched 18075 | -1/Access | Spotted Tracker 18076 | -1/Access | Spotted Tracker 18106 | -1/Access | Spotted B-99 Colossus 18115 | -1/Access | Core integrity fell below 50% 18128 | -1/Access | Spotted Combat Programmer 18179 | -1/Access | Spotted Combat Programmer 18183 | -1/Access | Destroyed Tracker 18195 | -1/Access | Core integrity fell below 20% 18221 | -1/Access | Spotted B-99 Colossus 18221 | -1/Access | Spotted B-99 Colossus 18229 | -1/Access | Destroyed by B-99 Colossus with Multirail Last Messages --------------- shimmering waves of color. 18206_ EMDS Slug penetrates Wall. 18206_ Spacefolded through Wall. 18207_ Penetrated by EMDS Slug. 18210_ S-43 Plague destroyed. 18211_ Spacefolded through Wall. 18221_ Penetrated by Slug. 18221_ Slug penetrates Wall. 18221_ Penetrated by Slug. 18222_ System corrupted: Matter fused (-9). 18222_ Penetrated by Slug. 18222_ Slug penetrates Door. 18224_ Slug penetrates Wall. 18225_ Chaos Jack destroyed. 18225_ Slug penetrates Reinforced Barrier. 18229_ Penetrated by Slug. 18229_ X0-1V1 laughs nastily! [Achievement: 30k Club] [Achievement: 40k Club] [Achievement: 50k Club] Map ----- +----------------------------------------------------+ | ???????????????????????????# ## #?????????? | | ???????????????????????????# ## #?????????? | | ???????????????????????????# #############+###???? | | ???????????????????????????# ??? | | ????????????????